fUSD/lending_fUSD_20250602
["ID","MTS","AMOUNT","RATE_DAILY","PERIOD"]
[363730146,1748850654016,-850.35,0.00019452,2]
[363730147,1748850654026,-420.0,0.00019452,2]
[363730148,1748850654035,-420.0,0.00019452,2]
[363730149,1748850654044,-420.0,0.00019452,2]
[363730150,1748850654054,-420.0,0.00019452,2]
[363730151,1748850654064,-420.0,0.00019452,2]
[363730152,1748850654073,-3371.378883,0.00019452,2]
[363730153,1748850654083,-420.0,0.00019452,2]
[363730154,1748850654093,-687.91,0.00019452,2]
[363730155,1748850654102,-3371.378883,0.00019452,2]
[363730156,1748850654112,-151.0,0.00019452,2]
[363730157,1748850654121,-653.05,0.00019452,2]
[363730158,1748850654131,-420.0,0.00019452,2]
[363730159,1748850654141,-1597.4,0.00019452,2]
[363730160,1748850654151,-420.0,0.00019452,2]
[363730161,1748850654164,-495.79,0.00019452,2]
[363730162,1748850654173,-420.0,0.00019452,2]
[363730163,1748850654183,-420.0,0.00019452,2]
[363730164,1748850654193,-420.0,0.00019452,2]
[363730165,1748850654202,-488.55629259,0.00019452,2]
[363730166,1748850654212,-230.0750437,0.00019452,2]
[363730167,1748850654222,-2147.87,0.00019452,2]
[363730168,1748850654231,-420.0,0.00019452,2]
[363730169,1748850654241,-420.0,0.00019452,2]
[363730170,1748850654251,-420.0,0.00019452,2]
[363730171,1748850654260,-352.65136954,0.00019452,2]
[363730172,1748850654270,-420.0,0.00019452,2]
[363730173,1748850654279,-420.0,0.00019452,2]
[363730174,1748850654289,-420.0,0.00019452,2]
[363730175,1748850654299,-420.0,0.00019452,2]
[363730176,1748850654308,-151.0,0.00019452,2]
[363730177,1748850654318,-420.0,0.00019452,2]
[363730178,1748850654327,-151.0,0.00019452,2]
[363730179,1748850654338,-420.0,0.00019452,2]
[363730180,1748850654348,-420.0,0.00019452,2]
[363730181,1748850654358,-181.702654,0.00019452,2]
[363730182,1748850654367,-1213.74,0.00019452,2]
[363730183,1748850654377,-420.0,0.00019452,2]
[363730184,1748850654386,-420.0,0.00019452,2]
[363730185,1748850654396,-2486.67,0.00019452,2]
[363730186,1748850654406,-420.0,0.00019452,2]
[363730187,1748850654415,-790.11,0.00019452,2]
[363730188,1748850654425,-420.0,0.00019452,2]
[363730189,1748850654434,-420.0,0.00019452,2]
[363730190,1748850654444,-420.0,0.00019452,2]
[363730191,1748850654453,-1023.06,0.00019452,2]
[363730192,1748850654463,-420.0,0.00019452,2]
[363730193,1748850654472,-420.0,0.00019452,2]
[363730194,1748850654482,-420.0,0.00019452,2]
[363730195,1748850654492,-420.0,0.00019452,2]
[363730196,1748850654502,-1016.4,0.00019452,2]
[363730197,1748850654511,-432.17,0.00019452,2]
[363730198,1748850654521,-1096.33,0.00019452,2]
[363730199,1748850654531,-2719.54,0.00019452,2]
[363730200,1748850654540,-420.0,0.00019452,2]
[363730201,1748850654550,-420.0,0.00019452,2]
[363730202,1748850654559,-420.0,0.00019452,2]
[363730203,1748850654568,-1196.57,0.00019452,2]
[363730204,1748850654579,-403.08874524,0.00019452,2]
[363730205,1748850654588,-420.0,0.00019452,2]
[363730206,1748850654599,-420.0,0.00019452,2]
[363730207,1748850654610,-794.91,0.00019452,2]
[363730208,1748850654619,-420.0,0.00019452,2]
[363730209,1748850654628,-420.0,0.00019452,2]
[363730210,1748850654639,-420.0,0.00019452,2]
[363730211,1748850654651,-444.27814091,0.00019452,2]
[363730212,1748850654661,-497.14,0.00019452,2]
[363730213,1748850654670,-590.05,0.00019452,2]
[363730214,1748850654680,-420.0,0.00019452,2]
[363730215,1748850654690,-420.0,0.00019452,2]
[363730216,1748850654699,-420.0,0.00019452,2]
[363730217,1748850654710,-7024.57,0.00019452,2]
[363730218,1748850654720,-203.46,0.00019452,2]
[363730219,1748850654730,-420.0,0.00019452,2]
[363730220,1748850654739,-451.33,0.00019452,2]
[363730221,1748850654749,-420.0,0.00019452,2]
[363730222,1748850654759,-420.0,0.00019452,2]
[363730223,1748850654768,-420.0,0.00019452,2]
[363730224,1748850654778,-420.0,0.00019452,2]
[363730225,1748850654787,-388.10144273,0.00019452,2]
[363730226,1748850654797,-713.17,0.00019452,2]
[363730227,1748850654807,-420.0,0.00019452,2]
[363730228,1748850654817,-1964.05,0.00019452,2]
[363730229,1748850654827,-420.0,0.00019452,2]
[363730230,1748850654837,-420.0,0.00019452,2]
[363730231,1748850654847,-420.0,0.00019452,2]
[363730232,1748850654858,-420.0,0.00019452,2]
[363730233,1748850654868,-746.56,0.00019452,2]
[363730234,1748850654878,-420.0,0.00019452,2]
[363730235,1748850654888,-420.0,0.00019452,2]
[363730236,1748850654898,-994.2,0.00019452,2]
[363730237,1748850654909,-420.0,0.00019452,2]
[363730238,1748850654919,-420.0,0.00019452,2]
[363730239,1748850654928,-420.0,0.00019452,2]
[363730240,1748850654938,-420.0,0.00019452,2]
[363730241,1748850654948,-420.0,0.00019452,2]
[363730242,1748850654958,-420.0,0.00019452,2]
[363730243,1748850654969,-1251.49,0.00019452,2]
[363730244,1748850654979,-1020.79,0.00019452,2]
[363730245,1748850654989,-420.0,0.00019452,2]
[363730246,1748850654998,-420.0,0.00019452,2]
[363730247,1748850655010,-420.0,0.00019452,2]
[363730248,1748850655021,-420.0,0.00019452,2]
[363730249,1748850655031,-420.0,0.00019452,2]
[363730250,1748850655042,-151.0,0.00019452,2]
[363730251,1748850655053,-420.0,0.00019452,2]
[363730252,1748850655064,-420.0,0.00019452,2]
[363730253,1748850655074,-420.0,0.00019452,2]
[363730254,1748850655085,-420.0,0.00019452,2]
[363730255,1748850655095,-420.0,0.00019452,2]
[363730256,1748850655107,-503.56,0.00019452,2]
[363730257,1748850655118,-12534.17,0.00019452,2]
[363730258,1748850655127,-420.0,0.00019452,2]
[363730259,1748850655138,-420.0,0.00019452,2]
[363730260,1748850655148,-420.0,0.00019452,2]
[363730261,1748850655160,-4170.71,0.00019452,2]
[363730262,1748850655171,-420.0,0.00019452,2]
[363730263,1748850655182,-420.0,0.00019452,2]
[363730264,1748850655191,-420.0,0.00019452,2]
[363730265,1748850655203,-420.0,0.00019452,2]
[363730266,1748850655213,-432.49,0.00019452,2]
[363730267,1748850655222,-420.0,0.00019452,2]
[363730268,1748850655232,-420.0,0.00019452,2]
[363730269,1748850655243,-1774.41,0.00019452,2]
[363730270,1748850655254,-704.46,0.00019452,2]
[363730271,1748850655263,-420.0,0.00019452,2]
[363730272,1748850655274,-420.0,0.00019452,2]
[363730273,1748850655285,-443.16,0.00019452,2]
[363730274,1748850655295,-420.0,0.00019452,2]
[363730275,1748850655305,-420.0,0.00019452,2]
[363730276,1748850655315,-420.0,0.00019452,2]
[363730277,1748850655324,-420.0,0.00019452,2]
[363730278,1748850655335,-486.89,0.00019452,2]
[363730279,1748850655345,-420.0,0.00019452,2]
[363730280,1748850655355,-3012.45,0.00019452,2]
[363730281,1748850655365,-420.0,0.00019452,2]
[363730282,1748850655375,-420.0,0.00019452,2]
[363730283,1748850655386,-420.0,0.00019452,2]
[363730284,1748850655395,-420.0,0.00019452,2]
[363730285,1748850655405,-420.0,0.00019452,2]
[363730286,1748850655415,-420.0,0.00019452,2]
[363730287,1748850655426,-420.0,0.00019452,2]
[363730288,1748850655436,-151.0,0.00019452,2]
[363730289,1748850655446,-475.07033438,0.00019452,2]
[363730290,1748850655456,-420.0,0.00019452,2]
[363730291,1748850655465,-420.0,0.00019452,2]
[363730292,1748850655475,-437.09,0.00019452,2]
[363730293,1748850655485,-420.0,0.00019452,2]
[363730294,1748850655495,-420.0,0.00019452,2]
[363730295,1748850655504,-420.0,0.00019452,2]
[363730296,1748850655514,-420.0,0.00019452,2]
[363730297,1748850655524,-420.0,0.00019452,2]
[363730298,1748850655535,-420.0,0.00019452,2]
[363730299,1748850655544,-420.0,0.00019452,2]
[363730300,1748850655554,-663.8736,0.00019474,2]
[363730301,1748850655564,-663.8736,0.00019474,2]
[363730302,1748850655575,-440.299628,0.00019474,2]
[363730303,1748850655584,-440.299628,0.00019474,2]
[363730304,1748850655594,-151.0,0.00019479,2]
[363730305,1748850655605,-283.829455,0.00019479,2]
[363730306,1748850655616,-3371.378883,0.00019479,2]
[363730307,1748850655627,-3371.378883,0.00019479,2]
[363730308,1748850655638,-151.0,0.00019479,2]
[363730309,1748850655648,-151.0,0.00019479,2]
[363730310,1748850655659,-151.0,0.00019479,2]
[363730311,1748850655669,-500.0,0.00019479,2]
[363730312,1748850655679,-500.0,0.00019479,2]
[363730313,1748850655689,-460.0,0.00019479,2]
[363730314,1748850655699,-500.0,0.00019479,2]
[363730315,1748850655709,-500.0,0.00019479,2]
[363730316,1748850655719,-500.0,0.00019479,2]
[363730317,1748850655729,-500.0,0.00019479,2]
[363730318,1748850655739,-2458.0,0.00019479,2]
[363730319,1748850655749,-500.0,0.00019479,2]
[363730320,1748850655760,-500.0,0.00019479,2]
[363730321,1748850655770,-500.0,0.00019479,2]
[363730322,1748850655780,-706.31711131,0.00019483,2]
[363730323,1748850655790,-2087.22818797,0.00019489,2]
[363730324,1748850655799,-163.10478396,0.00019489,2]
[363730325,1748850655809,-151.0,0.000195,2]
[363730326,1748850655819,-151.0,0.000195,2]
[363730327,1748850655829,-164.888299,0.000195,2]
[363730328,1748850655839,-151.0,0.000195,2]
[363730329,1748850655848,-151.0,0.000195,2]
[363730330,1748850655859,-151.0,0.000195,2]
[363730331,1748850655869,-151.0,0.000195,2]
[363730332,1748850655880,-2206.40104,0.000195,2]
[363730333,1748850655890,-2206.40104,0.000195,2]
[363730334,1748850655900,-158.725501,0.000195,2]
[363730335,1748850655910,-693.349142,0.000195,2]
[363730336,1748850655919,-151.0,0.000195,2]
[363730337,1748850655929,-693.349142,0.000195,2]
[363730338,1748850655939,-10100.0,0.000195,7]
[363730339,1748850655949,-500.0,0.00019507,2]
[363730340,1748850655959,-500.0,0.00019507,2]
[363730341,1748850655971,-460.0,0.00019507,2]
[363730342,1748850655981,-500.0,0.00019507,2]
[363730343,1748850655991,-250.0,0.00019507,2]
[363730344,1748850656001,-500.0,0.00019507,2]
[363730345,1748850656011,-172.05229456,0.00019507,2]
[363730346,1748850656021,-2458.0,0.00019507,2]
[363730347,1748850656031,-500.0,0.00019507,2]
[363730348,1748850656041,-500.0,0.00019507,2]
[363730349,1748850656051,-500.0,0.00019507,2]
[363730350,1748850656061,-160.79232204,0.00019524,2]
[363730351,1748850656071,-18318.18474695,0.0001953,2]
[363730352,1748850656080,-254.756034,0.00019531,2]
[363730353,1748850656090,-254.756034,0.00019531,2]
[363730354,1748850656100,-500.0,0.00019534,2]
[363730355,1748850656111,-500.0,0.00019534,2]
[363730356,1748850656120,-460.0,0.00019534,2]
[363730357,1748850656130,-500.0,0.00019534,2]
[363730358,1748850656141,-500.0,0.00019534,2]
[363730359,1748850656151,-2458.0,0.00019534,2]
[363730360,1748850656165,-500.0,0.00019534,2]
[363730361,1748850656175,-500.0,0.00019534,2]
[363730362,1748850656185,-500.0,0.00019534,2]
[363730363,1748850656197,-13696.1866928,0.00019535,2]
[363730364,1748850656211,-295.87500137,0.00019535,2]
[363730365,1748850656222,-500.0,0.00019562,2]
[363730366,1748850656236,-500.0,0.00019562,2]
[363730367,1748850656246,-460.0,0.00019562,2]
[363730368,1748850656256,-330.67424326,0.00019562,2]
[363730369,1748850656266,-500.0,0.00019562,2]
[363730370,1748850656276,-2458.0,0.00019562,2]
[363730371,1748850656286,-500.0,0.00019562,2]
[363730372,1748850656296,-550.50598866,0.00019562,2]
[363730373,1748850656306,-500.0,0.00019562,2]
[363730374,1748850656317,-500.0,0.00019562,2]
[363730375,1748850656328,-706.31711131,0.00019567,2]
[363730376,1748850656506,-13647.54446496,0.0001957,2]
[363730377,1748850656517,-728.8,0.00019588,2]
[363730378,1748850656527,-225.28,0.00019588,2]
[363730379,1748850656536,-500.0,0.00019589,2]
[363730380,1748850656547,-500.0,0.00019589,2]
[363730381,1748850656556,-460.0,0.00019589,2]
[363730382,1748850656566,-487.33682505,0.00019589,2]
[363730383,1748850656576,-2458.0,0.00019589,2]
[363730384,1748850656586,-500.0,0.00019589,2]
[363730385,1748850656595,-500.0,0.00019589,2]
[363730386,1748850656606,-254.756034,0.00019589,2]
[363730387,1748850656615,-254.756034,0.00019589,2]
[363730388,1748850656624,-254.756034,0.00019589,2]
[363730389,1748850656634,-254.756026,0.00019589,2]
[363730390,1748850656643,-151.0,0.00019589,2]
[363730391,1748850656653,-420.0,0.00019589,2]
[363730392,1748850656663,-151.0,0.00019589,2]
[363730393,1748850656672,-420.0,0.00019589,2]
[363730394,1748850656682,-290.510737,0.00019589,2]
[363730395,1748850656692,-420.0,0.00019589,2]
[363730396,1748850656702,-151.0,0.00019589,2]
[363730397,1748850656712,-151.0,0.00019589,2]
[363730398,1748850656723,-151.0,0.00019589,2]
[363730399,1748850656733,-420.0,0.00019589,2]
[363730400,1748850656742,-420.0,0.00019589,2]
[363730401,1748850656752,-420.0,0.00019589,2]
[363730402,1748850656762,-420.0,0.00019589,2]
[363730403,1748850656771,-420.0,0.00019589,2]
[363730404,1748850656780,-420.0,0.00019589,2]
[363730405,1748850656790,-420.0,0.00019589,2]
[363730406,1748850656799,-420.0,0.00019589,2]
[363730407,1748850656812,-420.0,0.00019589,2]
[363730408,1748850656822,-420.0,0.00019589,2]
[363730409,1748850656832,-420.0,0.00019589,2]
[363730410,1748850656842,-420.0,0.00019589,2]
[363730411,1748850656852,-256.06,0.00019589,2]
[363730412,1748850656863,-420.0,0.00019589,2]
[363730413,1748850656873,-420.0,0.00019589,2]
[363730414,1748850656884,-420.0,0.00019589,2]
[363730415,1748850656895,-151.0,0.00019589,2]
[363730416,1748850656906,-420.0,0.00019589,2]
[363730417,1748850656916,-151.0,0.00019589,2]
[363730418,1748850656926,-151.0,0.00019589,2]
[363730419,1748850656936,-420.0,0.00019589,2]
[363730420,1748850656946,-420.0,0.00019589,2]
[363730421,1748850656956,-420.0,0.00019589,2]
[363730422,1748850656966,-185.3,0.00019589,2]
[363730423,1748850656975,-420.0,0.00019589,2]
[363730424,1748850656985,-420.0,0.00019589,2]
[363730425,1748850656996,-519.90533368,0.00019589,2]
[363730426,1748850657006,-151.0,0.00019589,2]
[363730427,1748850657015,-420.0,0.00019589,2]
[363730428,1748850657025,-449.26,0.00019589,2]
[363730429,1748850657035,-420.0,0.00019589,2]
[363730430,1748850657045,-420.0,0.00019589,2]
[363730431,1748850657055,-420.0,0.00019589,2]
[363730432,1748850657064,-312.071918,0.00019589,2]
[363730433,1748850657074,-523.45,0.00019589,2]
[363730434,1748850657084,-312.071918,0.00019589,2]
[363730435,1748850657094,-420.0,0.00019589,2]
[363730436,1748850657103,-420.0,0.00019589,2]
[363730437,1748850657114,-420.0,0.00019589,2]
[363730438,1748850657124,-420.0,0.00019589,2]
[363730439,1748850657134,-439.35746051,0.00019589,2]
[363730440,1748850657144,-151.0,0.00019589,2]
[363730441,1748850657155,-420.0,0.00019589,2]
[363730442,1748850657167,-151.0,0.00019589,2]
[363730443,1748850657177,-475.75,0.00019589,2]
[363730444,1748850657187,-420.0,0.00019589,2]
[363730445,1748850657198,-157.27804,0.00019589,2]
[363730446,1748850657207,-420.0,0.00019589,2]
[363730447,1748850657217,-151.652471,0.00019589,2]
[363730448,1748850657227,-420.0,0.00019589,2]
[363730449,1748850657237,-151.0,0.00019589,2]
[363730450,1748850657247,-151.0,0.00019589,2]
[363730451,1748850657258,-151.0,0.00019589,2]
[363730452,1748850657267,-420.0,0.00019589,2]
[363730453,1748850657278,-767.215568,0.00019589,2]
[363730454,1748850657287,-420.0,0.00019589,2]
[363730455,1748850657297,-420.0,0.00019589,2]
[363730456,1748850657307,-767.215568,0.00019589,2]
[363730457,1748850657318,-420.0,0.00019589,2]
[363730458,1748850657330,-151.0,0.00019589,2]
[363730459,1748850657340,-151.0,0.00019589,2]
[363730460,1748850657351,-161.53372081,0.00019589,2]
[363730461,1748850657361,-420.0,0.00019589,2]
[363730462,1748850657371,-151.0,0.00019589,2]
[363730463,1748850657381,-420.0,0.00019589,2]
[363730464,1748850657390,-420.0,0.00019589,2]
[363730465,1748850657400,-420.0,0.00019589,2]
[363730466,1748850657409,-420.0,0.00019589,2]
[363730467,1748850657418,-151.0,0.00019589,2]
[363730468,1748850657428,-420.0,0.00019589,2]
[363730469,1748850657438,-151.0,0.00019589,2]
[363730470,1748850657447,-420.0,0.00019589,2]
[363730471,1748850657457,-420.0,0.00019589,2]
[363730472,1748850657467,-151.0,0.00019589,2]
[363730473,1748850657476,-420.0,0.00019589,2]
[363730474,1748850657486,-151.0,0.00019589,2]
[363730475,1748850657495,-420.0,0.00019589,2]
[363730476,1748850657505,-420.0,0.00019589,2]
[363730477,1748850657515,-420.0,0.00019589,2]
[363730478,1748850657525,-420.0,0.00019589,2]
[363730479,1748850657534,-151.0,0.00019589,2]
[363730480,1748850657544,-151.0,0.00019589,2]
[363730481,1748850657553,-151.0,0.00019589,2]
[363730482,1748850657563,-151.0,0.00019589,2]
[363730483,1748850657573,-151.0,0.00019589,2]
[363730484,1748850657583,-420.0,0.00019589,2]
[363730485,1748850657592,-2206.40104,0.00019589,2]
[363730486,1748850657602,-2206.40104,0.00019589,2]
[363730487,1748850657613,-420.0,0.00019589,2]
[363730488,1748850657622,-151.0,0.00019589,2]
[363730489,1748850657632,-420.0,0.00019589,2]
[363730490,1748850657642,-420.0,0.00019589,2]
[363730491,1748850657653,-693.349142,0.00019589,2]
[363730492,1748850657663,-734.61,0.00019589,2]
[363730493,1748850657673,-990.08,0.00019589,2]
[363730494,1748850657683,-2429.61,0.00019589,2]
[363730495,1748850657692,-151.0,0.00019589,2]
[363730496,1748850657702,-693.349142,0.00019589,2]
[363730497,1748850657712,-1500.0,0.00019589,7]
[363730498,1748850657722,-1500.0,0.00019589,7]
[363730499,1748850657731,-1500.0,0.00019589,7]
[363730500,1748850657741,-1500.0,0.00019589,7]
[363730501,1748850657750,-463.6,0.00019589,2]
[363730502,1748850657760,-1500.0,0.00019589,7]
[363730503,1748850657770,-1500.0,0.00019589,7]
[363730504,1748850657780,-1500.0,0.00019589,7]
[363730505,1748850657790,-1500.0,0.00019589,7]
[363730506,1748850657799,-1500.0,0.00019589,7]
[363730507,1748850657809,-1500.0,0.00019589,7]
[363730508,1748850657820,-420.0,0.00019589,2]
[363730509,1748850657830,-1500.0,0.00019589,7]
[363730510,1748850657840,-420.0,0.00019589,2]
[363730511,1748850657850,-1500.0,0.00019589,7]
[363730512,1748850657861,-420.0,0.00019589,2]
[363730513,1748850657871,-1500.0,0.00019589,7]
[363730514,1748850657881,-420.0,0.00019589,2]
[363730515,1748850657890,-1500.0,0.00019589,7]
[363730516,1748850657899,-1500.0,0.00019589,7]
[363730517,1748850657909,-1500.0,0.00019589,7]
[363730518,1748850657919,-1500.0,0.00019589,7]
[363730519,1748850657929,-1500.0,0.00019589,7]
[363730520,1748850657938,-1500.0,0.00019589,7]
[363730521,1748850657948,-1500.0,0.00019589,7]
[363730522,1748850657958,-1500.0,0.00019589,7]
[363730523,1748850657968,-1500.0,0.00019589,7]
[363730524,1748850657978,-481.25,0.00019589,2]
[363730525,1748850657988,-516.69753,0.00019589,7]
[363730526,1748850657999,-420.0,0.00019589,2]
[363730527,1748850658008,-912.47,0.00019589,2]
[363730528,1748850658018,-1694.81,0.00019589,2]
[363730529,1748850658029,-192.49532648,0.00019589,2]
[363730530,1748850658040,-420.0,0.00019589,2]
[363730531,1748850658050,-420.0,0.00019589,2]
[363730532,1748850658060,-427.23,0.00019589,2]
[363730533,1748850658070,-420.0,0.00019589,2]
[363730534,1748850658080,-420.0,0.00019589,2]
[363730535,1748850658090,-876.44,0.00019589,2]
[363730536,1748850658100,-420.0,0.00019589,2]
[363730537,1748850658109,-850.35,0.00019589,2]
[363730538,1748850658119,-420.0,0.00019589,2]
[363730539,1748850658129,-420.0,0.00019589,2]
[363730540,1748850658140,-420.0,0.00019589,2]
[363730541,1748850658150,-492.3,0.00019589,2]
[363730542,1748850658163,-420.0,0.00019589,2]
[363730543,1748850658174,-3371.378883,0.00019589,2]
[363730544,1748850658184,-3371.378883,0.00019589,2]
[363730545,1748850658194,-367.61038762,0.00019589,2]
[363730546,1748850658205,-687.91,0.00019589,2]
[363730547,1748850658215,-3371.378883,0.00019589,2]
[363730548,1748850658224,-3371.378883,0.00019589,2]
[363730549,1748850658235,-199.781702,0.00019589,2]
[363730550,1748850658244,-653.05,0.00019589,2]
[363730551,1748850658254,-223.35352204,0.00019589,2]
[363730552,1748850658264,-1597.4,0.00019589,2]
[363730553,1748850658273,-420.0,0.00019589,2]
[363730554,1748850658283,-495.79,0.00019589,2]
[363730555,1748850658293,-420.0,0.00019589,2]
[363730556,1748850658302,-420.0,0.00019589,2]
[363730557,1748850658311,-420.0,0.00019589,2]
[363730558,1748850658320,-2147.87,0.00019589,2]
[363730559,1748850658330,-420.0,0.00019589,2]
[363730560,1748850658339,-420.0,0.00019589,2]
[363730561,1748850658348,-305.18563026,0.00019589,2]
[363730562,1748850658358,-420.0,0.00019589,2]
[363730563,1748850658368,-420.0,0.00019589,2]
[363730564,1748850658377,-420.0,0.00019589,2]
[363730565,1748850658387,-420.0,0.00019589,2]
[363730566,1748850658397,-420.0,0.00019589,2]
[363730567,1748850658406,-420.0,0.00019589,2]
[363730568,1748850658416,-151.0,0.00019589,2]
[363730569,1748850658426,-420.0,0.00019589,2]
[363730570,1748850658436,-1213.74,0.00019589,2]
[363730571,1748850658446,-420.0,0.00019589,2]
[363730572,1748850658455,-420.0,0.00019589,2]
[363730573,1748850658465,-2486.67,0.00019589,2]
[363730574,1748850658475,-340.3518464,0.00019589,2]
[363730575,1748850658484,-790.11,0.00019589,2]
[363730576,1748850658493,-420.0,0.00019589,2]
[363730577,1748850658503,-249.98,0.00019589,2]
[363730578,1748850658512,-508.96,0.00019589,2]
[363730579,1748850658522,-1023.06,0.00019589,2]
[363730580,1748850658531,-420.0,0.00019589,2]
[363730581,1748850658540,-420.0,0.00019589,2]
[363730582,1748850658550,-420.0,0.00019589,2]
[363730583,1748850658560,-420.0,0.00019589,2]
[363730584,1748850658569,-1016.4,0.00019589,2]
[363730585,1748850658578,-432.17,0.00019589,2]
[363730586,1748850658588,-1096.33,0.00019589,2]
[363730587,1748850658597,-2719.54,0.00019589,2]
[363730588,1748850658606,-420.0,0.00019589,2]
[363730589,1748850658616,-420.0,0.00019589,2]
[363730590,1748850658625,-420.0,0.00019589,2]
[363730591,1748850658634,-1196.57,0.00019589,2]
[363730592,1748850658643,-448.40220564,0.00019589,2]
[363730593,1748850658653,-420.0,0.00019589,2]
[363730594,1748850658663,-794.91,0.00019589,2]
[363730595,1748850658672,-420.0,0.00019589,2]
[363730596,1748850658682,-316.48047882,0.00019589,2]
[363730597,1748850658692,-420.0,0.00019589,2]
[363730598,1748850658701,-497.14,0.00019589,2]
[363730599,1748850658711,-590.05,0.00019589,2]
[363730600,1748850658720,-420.0,0.00019589,2]
[363730601,1748850658729,-159.23089909,0.00019589,2]
[363730602,1748850658739,-7024.57,0.00019589,2]
[363730603,1748850658748,-420.0,0.00019589,2]
[363730604,1748850658757,-420.0,0.00019589,2]
[363730605,1748850658766,-451.33,0.00019589,2]
[363730606,1748850658776,-420.0,0.00019589,2]
[363730607,1748850658785,-420.0,0.00019589,2]
[363730608,1748850658794,-420.0,0.00019589,2]
[363730609,1748850658804,-420.0,0.00019589,2]
[363730610,1748850658813,-713.17,0.00019589,2]
[363730611,1748850658823,-420.0,0.00019589,2]
[363730612,1748850658832,-1964.05,0.00019589,2]
[363730613,1748850658902,-420.0,0.00019589,2]
[363730614,1748850658912,-420.0,0.00019589,2]
[363730615,1748850658921,-420.0,0.00019589,2]
[363730616,1748850658931,-420.0,0.00019589,2]
[363730617,1748850658940,-746.56,0.00019589,2]
[363730618,1748850658949,-420.0,0.00019589,2]
[363730619,1748850658959,-420.0,0.00019589,2]
[363730620,1748850658969,-994.2,0.00019589,2]
[363730621,1748850658978,-420.0,0.00019589,2]
[363730622,1748850658987,-420.0,0.00019589,2]
[363730623,1748850658997,-420.0,0.00019589,2]
[363730624,1748850659006,-420.0,0.00019589,2]
[363730625,1748850659016,-420.0,0.00019589,2]
[363730626,1748850659026,-420.0,0.00019589,2]
[363730627,1748850659035,-1251.49,0.00019589,2]
[363730628,1748850659045,-1020.79,0.00019589,2]
[363730629,1748850659054,-351.76,0.00019589,2]
[363730630,1748850659064,-420.0,0.00019589,2]
[363730631,1748850659073,-420.0,0.00019589,2]
[363730632,1748850659083,-420.0,0.00019589,2]
[363730633,1748850659092,-420.0,0.00019589,2]
[363730634,1748850659102,-151.0,0.00019589,2]
[363730635,1748850659115,-151.0,0.00019589,2]
[363730636,1748850659125,-420.0,0.00019589,2]
[363730637,1748850659134,-497.36,0.00019589,2]
[363730638,1748850659144,-420.0,0.00019589,2]
[363730639,1748850659154,-420.0,0.00019589,2]
[363730640,1748850659167,-503.56,0.00019589,2]
[363730641,1748850659176,-420.0,0.00019589,2]
[363730642,1748850659186,-12534.17,0.00019589,2]
[363730643,1748850659195,-420.0,0.00019589,2]
[363730644,1748850659206,-420.0,0.00019589,2]
[363730645,1748850659215,-420.0,0.00019589,2]